[Event "MPL 41st IND-ch Teams 2022"]
[Site "Jalgaon"]
[Date "2022.04.10"]
[Round "4.7"]
[White "Gengaje Pratik"]
[Black "Visakh N R"]
[Result "0-1"]
[ECO "B22"]
[WhiteElo "1744"]
[BlackElo "2522"]
[Annotator "TA"]
[PlyCount "122"]
[EventDate "2022.04.08"]
[EventType "team-tourn"]
[EventCountry "IND"]
[SourceTitle "playchess.com"]
[Source "ChessBase"]
[SourceQuality "1"]
[TimeControl "5400+30"]

{[%evp 27,122,-29,-27,-27,-30,-25,-15,-26,-11,-15,-10,-64,-20,-45,-38,-36,-30,-45,-10,-17,-8,-31,-33,-60,-52,-52,-31,-42,-43,-56,-49,-51,-49,-52,-32,-42,-24,-33,-39,-38,-18,-43,-39,-39,-41,-68,0,-55,-16,-94,-94,-89,-81,-79,-79,-80,-94,-117,-90,-187,-168,-168,-94,-94,-94,-94,-94,-94,-94,-94,-94,-94,-94,-94,-94,-94,-94,-94,-95,-255,-255,-1226,-1132,-976,-845,-7675,-7714,-6052,-5760,-4794,-4133,-2448,-1405,-11157,-1766,-29974,-29963]} 1. e4 c5 2. c3 Nf6 3. e5 Nd5 4. d4 cxd4 5. Nf3 e6 6. cxd4 d6 7. Nc3 Nxc3 8. bxc3 Qc7 9. Bd2 Nd7 10. exd6 Bxd6 11. Bd3 b6 12. O-O Bb7 13. Re1 O-O 14. h3 Bf4 15. Be4 {[#] Hoping for Bxf4. B22: Sicilian: 2 c3.} Bxd2 16. Qxd2 Rac8 {White must now prevent ...Bxe4.} 17. Rac1 {The position is equal.} Rfd8 {[%cal Od7c5]} 18. Bxb7 Qxb7 {[#]} 19. Ne5 $146 (19. c4 $11) ({Predecessor:} 19. c4 Qa6 20. Qc2 Nf6 21. Qb3 Rd7 22. Rc2 h6 23. Rec1 Rcd8 24. a4 Qb7 25. a5 {0-1 (45) Carli,C (2053)-Kalegin,E (2424) Verona 2019}) 19... Nf8 20. Re3 Ng6 21. Nxg6 hxg6 22. c4 Rc7 23. Rd3 Qa6 24. Rdc3 Qa5 {[%cal Oc7c4]} 25. Rd3 Qxd2 26. Rxd2 $15 {[%mdl 4096] Endgame KRR-KRR} Rd5 27. f4 Rf5 28. g3 g5 29. fxg5 Rxg5 30. Kf2 f6 31. Rc3 Kf7 32. Kf3 Rf5+ 33. Kg2 g5 34. Re2 Ra5 35. Kf3 Ra4 36. Rec2 Ra5 (36... Rd7 $15 37. Rd2 e5) 37. Kg2 ({White should try} 37. Re2 $11) 37... Rc8 38. g4 (38. c5 $11) 38... Rd8 $17 39. Rd2 e5 40. d5 Rc5 41. Rdc2 Rdc8 42. a4 Ra5 43. Kf3 (43. Rf3 $17) 43... Rxa4 44. c5 Rh8 (44... Rxc5 $19 45. Rxc5 bxc5 46. Rxc5 Ke7) 45. Kg2 bxc5 46. Rxc5 Kg6 {&Nero is more active.} 47. Rc6 Rd4 48. Rf2 Rf8 ({Resist} 48... Rxd5 49. Rcxf6+ Kh7 50. Rf7+ Kg8 51. R7f5 $14 (51. Rxa7 Rh7 $14)) 49. d6 Rf7 50. Ra6 Rd3 51. Rc6 Rd7 52. Ra2 Rh7 53. Rc7 $2 {This move loses the game for White.} (53. Rf2 $17 {was called for.}) 53... Rhxh3 $19 {[#] aiming for ...Rhg3+.} 54. Raxa7 $2 (54. Rd2) 54... Rhg3+ 55. Kf2 Rxg4 {Strongly threatening ...Rgd4.} 56. Rg7+ Kf5 {...Rd2+ is the strong threat.} 57. d7 Rgd4 58. Rf7 Rd6 59. Ke2 g4 60. Rg7 g3 (60... Rd2+ $142 61. Ke1 Kf4) 61. Rc7 Kf4 {Weighted Error Value: White=0.64/Black=0.33} 0-1

[Event "MPL 41st IND-ch Teams 2022"]
[Site "Jalgaon"]
[Date "2022.04.10"]
[Round "4.8"]
[White "Shyaamnikhil P"]
[Black "Mithil Anande P"]
[Result "1-0"]
[ECO "A06"]
[WhiteElo "2442"]
[BlackElo "1698"]
[Annotator "TA"]
[PlyCount "63"]
[EventDate "2022.04.08"]
[EventType "team-tourn"]
[EventCountry "IND"]
[SourceTitle "playchess.com"]
[Source "ChessBase"]
[SourceQuality "1"]
[TimeControl "5400+30"]

{[%evp 13,63,15,37,0,37,12,34,35,64,70,61,58,65,63,77,70,63,55,67,66,82,77,92,60,97,100,112,100,97,99,158,156,135,122,112,108,156,154,156,152,156,128,345,344,418,403,485,454,504,492,1007,772]} 1. Nf3 d5 2. g3 Nf6 3. Bg2 e6 4. O-O Be7 5. d3 b5 6. Nbd2 Bb7 7. e4 c5 8. exd5 {A05: Réti Opening: 1 Nf3 Nf6.} exd5 9. Nh4 {[#]} O-O $146 ({Predecessor:} 9... Qd7 10. Re1 Nc6 11. Nb3 O-O-O 12. a4 b4 13. Bg5 Rhe8 14. Bxf6 gxf6 15. Qh5 Kb8 {0-1 (45) Krause,U (2276)-Schulz,M (2233) Verden/Aller 2014}) 10. a4 {White is slightly better.} a6 11. Nf5 Re8 12. Nxe7+ Qxe7 13. Nb3 Nbd7 14. Bd2 Nf8 15. Re1 Ne6 16. Na5 Qc7 17. axb5 axb5 18. b4 c4 19. Nxb7 Qxb7 20. Bc3 {[#] Threatens to win with Rxa8.} Rxa1 21. Qxa1 Nd7 (21... cxd3 $142 22. Bxf6 (22. cxd3 Qe7 $16) 22... gxf6) 22. dxc4 $16 bxc4 23. Qd1 Nb6 24. f4 {[%cal Bf2f4,Bf4f5][%mdl 32]} Qd7 (24... Na4 $142 25. Bxd5 Qd7 26. Bxe6 Qxd1 27. Rxd1 Nxc3) 25. f5 Nc7 26. Rxe8+ Nxe8 27. g4 f6 $2 {[#] This costs Black the game.} (27... Na4 $16 {might work better.} 28. Be5 Nf6) 28. Qd4 $18 Qd8 29. Be1 Kh8 30. Bf2 {White is clearly winning.} Nd7 31. Qxd5 Qc7 (31... Nc7 $142 32. Qxc4 h5) 32. Qa8 {Weighted Error Value: White=0.06 (flawless) /Black=0.36} 1-0

[Event "MPL 41st IND-ch Teams 2022"]
[Site "Jalgaon"]
[Date "2022.04.11"]
[Round "5.1"]
[White "Deepan Chakkravarthy J."]
[Black "Aravindh, Chithambaram VR."]
[Result "1/2-1/2"]
[ECO "B13"]
[WhiteElo "2520"]
[BlackElo "2611"]
[Annotator "TA"]
[PlyCount "98"]
[EventDate "2022.04.08"]
[EventType "team-tourn"]
[EventCountry "IND"]
[SourceTitle "playchess.com"]
[Source "ChessBase"]
[SourceQuality "1"]
[TimeControl "5400+30"]

{[%evp 9,98,1,0,-15,-15,-15,-10,-16,-16,-19,-16,-12,-12,-12,-13,-15,-13,-21,-17,-22,0,-14,0,0,0,-6,0,0,0,-14,0,0,0,0,25,25,25,25,25,25,25,25,25,25,25,25,25,7,25,32,26,-24,-16,-19,-19,-25,-14,-19,-20,-16,0,-7,20,0,0,0,0,0,0,0,0,-4,0,0,0,0,0,0,0,0,0,0,0,0,0,0,0,0,0,0,0]} 1. e4 {[%emt 0:00:31]} c6 {[%emt 0:00:12]} 2. d4 {[%emt 0:03:03]} d5 {[%emt 0:00:08]} 3. exd5 {[%emt 0:03:19]} cxd5 {[%emt 0:00:06]} 4. h3 {[%emt 0:00:54]} Nc6 {[%emt 0:02:54]} 5. Nf3 {[%emt 0:00:09]} Bf5 {[%emt 0:00:15]} 6. Bd3 {[%emt 0:00:17] B13: Caro-Kann: Exchange Variation and Panov-Botvinnik Attack.} Bxd3 {[%emt 0:07:47]} 7. Qxd3 {[%emt 0:00:18]} e6 {[%emt 0:00:10]} 8. Bf4 {[%emt 0:01:22]} Nge7 {[%emt 0:04:03]} 9. O-O {[%emt 0:03:27]} Ng6 {[%emt 0:00:32]} 10. Bg3 {[%emt 0:07:26] [#]} Bd6 $146 {[%emt 0:00:47]} ({Predecessor:} 10... Rc8 11. c3 Bd6 12. Bxd6 Qxd6 13. Re1 O-O 14. Nbd2 f6 15. Rad1 Rcd8 16. Qb5 Nf4 {0-1 (71) Kadlec,B-Voveris,S ICCF email 2013}) 11. Bxd6 {[%emt 0:00:05]} Qxd6 {[%emt 0:00:03]} 12. Re1 {[%emt 0:00:07]} O-O {[%emt 0:09:18]} 13. Nc3 {[%emt 0:01:53]} Rfc8 {[%emt 0:16:47]} 14. a3 {[%emt 0:00:36]} Nce7 {[%emt 0:07:22]} 15. Nd1 {[%emt 0:05:49]} Qb6 {[%emt 0:06:22]} 16. g3 {[%emt 0:07:36]} Nf5 {[%emt 0:01:03]} 17. h4 {[%emt 0:00:37]} h6 {[%emt 0:01:04]} 18. c3 {[%emt 0:02:13]} a5 {[%emt 0:00:18]} 19. Rc1 {[%emt 0:04:59]} Qa6 {[%emt 0:03:45]} 20. Qxa6 {[%emt 0:06:36]} Rxa6 {[%emt 0:08:06]} 21. h5 {[%emt 0:05:01]} Nf8 {[%emt 0:04:25][%cal Bg6f8,Bf8d7,Bd7b8,Bb8a6,Ba6c7,Bc7e8,Be8d6][%mdl 32]} 22. g4 {[%emt 0:01:18]} Nd6 {[%emt 0:00:13]} 23. Ne5 {[%emt 0:00:07]} b5 {[%emt 0:02:54][%cal Ob5b4]} 24. Nd3 {[%emt 0:02:35] Prevents b4.} Nd7 {[%emt 0:02:09]} 25. Ne3 {[%emt 0:01:55][%cal Bd1e3,Be3c2,Bc2b4][%mdl 32]} Rb6 {[%emt 0:03:36]} 26. Kg2 {[%emt 0:01:41]} Nc4 {[%emt 0:00:40]} 27. Rcd1 {[%emt 0:02:25]} Nb8 {[%emt 0:05:34]} 28. Re2 {[%emt 0:00:40]} Na6 {[%emt 0:00:14]} 29. Nc2 {[%emt 0:02:02]} Rbc6 {[%emt 0:04:19]} 30. b4 {[%emt 0:06:17]} (30. Ra1 $142) 30... Nc7 {[%emt 0:00:55]} 31. Nc5 {[%emt 0:00:22]} Ne8 {[%emt 0:00:12]} 32. Ra1 {[%emt 0:02:07]} Ned6 {[%emt 0:00:27]} 33. bxa5 {[%emt 0:07:45] The position is equal.} Nxa5 {[%emt 0:01:07]} 34. Nb4 {[%emt 0:01:51]} Rb6 {[%emt 0:00:49]} 35. a4 {[%emt 0:01:56]} Ndb7 {[%emt 0:05:20]} 36. axb5 {[%emt 0:02:09]} Rxb5 {[%emt 0:00:36]} 37. Nbd3 {[%emt 0:11:21]} Nxc5 {[%emt 0:01:38]} 38. Nxc5 {[%emt 0:00:08]} Nb3 {[%emt 0:00:27]} 39. Nxb3 {[%emt 0:00:02]} Rxb3 {[%emt 0:00:04]} 40. Re3 {[%emt 0:00:03]} Rbxc3 {[%emt 0:01:36]} 41. Rxc3 {[%emt 0:00:02]} Rxc3 $11 {[%emt 0:00:03][%mdl 4096] Endgame KR-KR} 42. Ra8+ {[%emt 0:00:04]} Kh7 {[%emt 0:00:03]} 43. Ra7 {[%emt 0:00:07]} Kg8 {[%emt 0:00:03] White must now prevent ...Rc4.} 44. Ra8+ $1 {[%emt 0:00:03]} Kh7 {[%emt 0:00:02] [#] And now ...g6 would win.} 45. Ra7 {[%emt 0:00:03]} f6 {[%emt 0:02:22] aiming for ...Rc4.} 46. Ra6 {[%emt 0:02:07]} e5 {[%emt 0:00:26]} (46... Rc4 $5 {[%cal Rc4d4]}) 47. Ra5 {[%emt 0:01:04]} Rd3 {[%emt 0:01:31]} 48. Rxd5 {[%emt 0:00:12]} exd4 {[%emt 0:00:35]} 49. Kf1 {[%emt 0:00:34]} Kg8 {[%emt 0:00:47] A rather calm draw.  Weighted Error Value: White=0.04 (flawless) /Black=0.04 (flawless)} 1/2-1/2

[Event "MPL 41st IND-ch Teams 2022"]
[Site "Jalgaon"]
[Date "2022.04.11"]
[Round "5.3"]
[White "Visakh N R"]
[Black "Harsha Bharathakoti"]
[Result "1/2-1/2"]
[ECO "E10"]
[WhiteElo "2522"]
[BlackElo "2499"]
[Annotator "TA"]
[PlyCount "59"]
[EventDate "2022.04.08"]
[EventType "team-tourn"]
[EventCountry "IND"]
[SourceTitle "playchess.com"]
[Source "ChessBase"]
[SourceQuality "1"]
[TimeControl "5400+30"]

{[%evp 18,59,20,12,16,19,14,0,0,0,0,0,0,0,0,0,0,0,0,0,0,0,0,0,0,0,0,-20,-24,-20,-28,-26,-28,-25,-22,-25,-26,-41,-42,-44,-26,-54,-48,-68]} 1. d4 {[%emt 0:02:06]} Nf6 {[%emt 0:00:34]} 2. c4 {[%emt 0:00:03]} e6 {[%emt 0:00:09]} 3. Nf3 {[%emt 0:00:12]} d5 {[%emt 0:00:17]} 4. g3 {[%emt 0:00:40]} Bb4+ {[%emt 0:00:37]} 5. Bd2 {[%emt 0:00:07]} Be7 {[%emt 0:00:06]} 6. Bg2 {[%emt 0:00:04]} O-O {[%emt 0:00:20]} 7. O-O {[%emt 0:00:03]} c6 {[%emt 0:00:55]} 8. Qc2 {[%emt 0:00:14]} Nbd7 {[%emt 0:00:06]} 9. Rd1 {[%emt 0:03:31]} b6 {[%emt 0:00:05][%cal Bb7b6,Bb6b5,Bb5b4][%mdl 32]} 10. Bf4 {[%emt 0:07:23]} Ba6 {[%emt 0:01:33] E08: Closed Catalan: Main Line: 7 Qc2.} 11. cxd5 {[%emt 0:08:49]} cxd5 {[%emt 0:00:10]} 12. Nc3 {[%emt 0:00:02]} (12. Ne5 {keeps more tension.} Rc8 13. Nc6 Bb5 14. Nxe7+ Qxe7 15. Nc3) 12... b5 {[%emt 0:13:44] The position is equal.} 13. a4 {[%emt 0:10:30]} b4 {[%emt 0:05:58] [#] And now ...Rc8 would win.} 14. Nb5 {[%emt 0:00:16] [#]} Rc8 $146 {[%emt 0:06:48] Against Qc6} ({Predecessor:} 14... Qb6 15. Qc7 Rfc8 16. Qxb6 axb6 17. Rdc1 Ne8 18. Ne1 Kf8 19. e4 Ndf6 20. exd5 Nxd5 {0-1 (38) Fominykh,M (2206)-Krysa,L (2523) Chess.com INT 2021}) 15. Qb3 {[%emt 0:04:42]} Qb6 {[%emt 0:01:08]} 16. Bf1 {[%emt 0:02:18]} Ne4 {[%emt 0:06:44]} 17. Nd2 {[%emt 0:19:16]} g5 {[%emt 0:26:41]} 18. Be3 {[%emt 0:01:33] [#] Black must now prevent Nxe4.} f5 {[%emt 0:21:46]} 19. Nxe4 {[%emt 0:19:49]} fxe4 {[%emt 0:00:05]} 20. Bd2 {[%emt 0:00:04]} Rc4 {[%emt 0:00:17]} 21. e3 {[%emt 0:01:22]} Rfc8 {[%emt 0:00:07]} (21... Bxb5 $2 22. axb5 Rc7 23. Ra6 $18 (23. Bxb4 Bxb4 24. Qxb4 Rb7 $16)) 22. Rdc1 {[%emt 0:02:36]} Rxc1 {[%emt 0:01:20]} ({But not} 22... Bxb5 23. axb5 Rxc1 24. Bxc1 $14) 23. Rxc1 {[%emt 0:06:05]} Rxc1 {[%emt 0:00:19]} 24. Bxc1 {[%emt 0:00:01]} Bb7 {[%emt 0:02:10]} 25. Bd2 {[%emt 0:01:11]} a5 {[%emt 0:02:17]} ({Don't play} 25... a6 26. Bxb4 Bxb4 27. Qxb4 axb5 28. a5 $16 (28. Qe7 Nf8 $14)) 26. Qc2 {[%emt 0:01:25]} Qc6 {[%emt 0:00:13]} 27. Qxc6 {[%emt 0:02:34]} Bxc6 {[%emt 0:00:07]} 28. b3 {[%emt 0:00:02]} Kf7 {[%emt 0:06:24]} 29. Be2 {[%emt 0:03:06]} Nf6 {[%emt 0:00:24]} 30. Bc1 {[%emt 0:01:25] Weighted Error Value: White=0.05 (flawless) /Black=0.02 (flawless)} 1/2-1/2

[Event "MPL 41st IND-ch Teams 2022"]
[Site "Jalgaon"]
[Date "2022.04.11"]
[Round "5.4"]
[White "Raja Rithvik R"]
[Black "Shyaamnikhil P"]
[Result "1/2-1/2"]
[ECO "A33"]
[WhiteElo "2490"]
[BlackElo "2442"]
[Annotator "TA"]
[PlyCount "102"]
[EventDate "2022.04.08"]
[EventType "team-tourn"]
[EventCountry "IND"]
[SourceTitle "playchess.com"]
[Source "ChessBase"]
[SourceQuality "1"]
[TimeControl "5400+30"]

{[%evp 11,102,8,5,13,22,27,19,11,26,14,37,39,48,0,0,0,0,-6,14,8,9,14,9,14,20,0,0,0,0,0,4,0,9,-18,90,81,77,68,118,65,50,16,16,26,16,18,35,36,32,25,47,39,60,79,67,78,81,32,56,0,0,2,18,-25,-43,-28,76,76,83,28,21,55,37,0,0,0,0,0,0,0,0,0,0,0,0,0,0,0,0,0,0,0,29993]} 1. c4 {[%emt 0:02:02]} c5 {[%emt 0:00:00]} 2. Nf3 {[%emt 0:01:11]} Nc6 {[%emt 0:00:11]} 3. Nc3 Nf6 {[%emt 0:04:26]} 4. d4 {[%emt 0:00:00]} cxd4 {[%emt 0:00:11]} 5. Nxd4 {[%emt 0:00:00]} e6 {[%emt 0:02:59]} 6. a3 {[%emt 0:00:00]} Bc5 {[%emt 0:04:14]} 7. Nb3 {[%emt 0:00:00] A33: Symmetrical English: 2 Nf3 Nf6 3 d4 cxd4 4 Nxd4 e6 5 Nc3 Nc6.} Bb6 {[%emt 0:00:40]} 8. c5 {[%emt 0:00:00]} Bc7 {[%emt 0:00:15]} 9. g3 {[%emt 0:00:00]} b6 {[%emt 0:02:07]} 10. Bg2 {[%emt 0:00:53] [#]} Ba6 $146 {[%emt 0:10:08]} ({Predecessor:} 10... O-O 11. O-O bxc5 12. Nxc5 Qe7 13. b4 a5 14. Rb1 axb4 15. axb4 d5 16. Nd3 Ne5 {½-½ (52) Nepomniachtchi,I (2784)-Giri,A (2764) chess24.com INT 2020}) 11. O-O {[%emt 0:04:07]} Be5 {[%emt 0:11:38]} 12. h3 {[%emt 0:23:12]} (12. a4 $14) 12... O-O {[%emt 0:05:14]} 13. Be3 {[%emt 0:01:42]} Rc8 {[%emt 0:04:28]} 14. Rc1 {[%emt 0:02:18]} d5 {[%emt 0:08:04] [#] aiming for ...d4.} 15. cxd6 $1 {[%emt 0:03:38]} Bxd6 {[%emt 0:06:09]} 16. Nd4 {[%emt 0:07:39]} Nxd4 {[%emt 0:16:06]} 17. Bxd4 {[%emt 0:00:27]} Rc4 {[%emt 0:03:33][%cal Od6a3] Prevents Qa4.} 18. b3 {[%emt 0:06:27]} Rc7 {[%emt 0:01:25]} 19. b4 {[%emt 0:00:09]} Bc4 {[%emt 0:00:47]} 20. Qa4 {[%emt 0:19:17]} Qc8 {[%emt 0:09:44]} 21. Rfd1 {[%emt 0:12:39] Strongly threatening Bxf6.} Rd8 {[%emt 0:00:33]} 22. Be3 {[%emt 0:07:34]} Be7 {[%emt 0:04:39]} (22... Be5 $11 {remains equal.}) 23. Bf4 $16 {[%emt 0:02:22] &Bianco is more active.} Rxd1+ {[%emt 0:00:19]} 24. Nxd1 {[%emt 0:01:21]} b5 {[%emt 0:01:35] [#]} (24... Qd7 $1 $14 25. Qxd7 Rxd7) 25. Qc2 {[%emt 0:02:38]} (25. Qa5 $1 $16 {[%cal Ra5c7]} Rd7 26. Ne3) 25... Rd7 $14 {[%emt 0:00:06]} 26. Ne3 {[%emt 0:00:22][%cal Re3c4]} (26. Nb2 {keeps more tension.} Nd5 27. Be5 Qa6 28. Nxc4 bxc4 29. Qxc4 Qxa3 30. Qc6) 26... Nd5 {[%emt 0:01:44]} 27. Nxd5 {[%emt 0:02:49]} exd5 {[%emt 0:00:10]} 28. Be5 {[%emt 0:01:07]} Qa6 {[%emt 0:01:16]} 29. Qb2 {[%emt 0:00:24]} Qg6 {[%emt 0:00:36]} 30. h4 {[%emt 0:00:17]} h5 {[%emt 0:00:48]} 31. Rd1 {[%emt 0:00:15]} Rd8 {[%emt 0:01:00]} 32. Kh2 {[%emt 0:00:58]} f6 {[%emt 0:00:20]} 33. Bd4 {[%emt 0:00:19]} a6 {[%emt 0:00:21]} 34. Bf3 {[%emt 0:00:09]} (34. Bb6 $16 Rd7 35. Bc5) 34... Qf5 {[%emt 0:00:22]} 35. Bc5 {[%emt 0:01:10]} (35. Bb6 $14 Rd7 36. Qd4) 35... Bxc5 $11 {[%emt 0:00:17]} 36. bxc5 {[%emt 0:00:01]} Qe5 {[%emt 0:00:47]} 37. Qd4 Qxd4 {[%emt 0:01:06]} 38. Rxd4 {[%emt 0:00:34][%mdl 4096] Endgame Black must now prevent e4. KRB-KRB} Re8 {[%emt 0:00:34]} (38... Kf8 $1 $11) 39. e3 $16 {[%emt 0:00:52]} ({But not} 39. Bxd5+ Bxd5 40. Rxd5 Rxe2 $11) ({Reject} 39. Bxh5 $6 Rc8 $11) 39... Kf7 {[%emt 0:00:31]} 40. Bxh5+ {[%emt 0:01:03]} (40. Bxd5+ $16 Bxd5 41. Rxd5) 40... g6 $11 {[%emt 0:00:06]} 41. Bf3 {[%emt 0:00:22]} Ke6 {[%emt 0:00:07]} 42. h5 {[%emt 0:00:38]} gxh5 {[%emt 0:00:06] The position is equal.} 43. Bxh5 {[%emt 0:00:11]} Rc8 {[%emt 0:00:16]} 44. Bg4+ {[%emt 0:00:44]} f5 {[%emt 0:00:06]} 45. Bh3 {[%emt 0:00:09]} Rxc5 {[%emt 0:00:05]} 46. Rh4 {[%emt 0:00:38]} a5 {[%emt 0:00:12]} 47. Rh6+ {[%emt 0:00:09]} Ke7 {[%emt 0:00:41]} (47... Ke5 {is a self mate.} 48. Bg2 f4 49. gxf4+ Kf5 50. Kg3) 48. Rh7+ {[%emt 0:01:00]} Kf6 {[%emt 0:00:14]} 49. Rh6+ $1 {[%emt 0:00:11]} Ke7 {[%emt 0:00:07]} 50. Rh7+ {[%emt 0:00:54]} Kf6 {[%emt 0:00:39]} 51. Rh6+ {[%emt 0:00:09]} Ke5 $2 {[%mdl 40960] Weighted Error Value: White=0.11 (very precise) /Black=0.11 (very precise) . An unexpected result.} (51... Kf7 $11) 1/2-1/2

[Event "MPL 41st IND-ch Teams 2022"]
[Site "Jalgaon"]
[Date "2022.04.11"]
[Round "5.5"]
[White "Tarun V Kanth"]
[Black "Krishna C R G"]
[Result "1/2-1/2"]
[ECO "D26"]
[WhiteElo "1908"]
[BlackElo "2466"]
[Annotator "TA"]
[PlyCount "46"]
[EventDate "2022.04.08"]
[EventType "team-tourn"]
[EventCountry "IND"]
[SourceTitle "playchess.com"]
[Source "ChessBase"]
[SourceQuality "1"]
[TimeControl "5400+30"]

{[%evp 20,46,53,25,48,47,40,0,12,-14,-12,-20,-26,-22,-25,-27,0,-38,-20,-32,-3,-3,-3,-8,0,-4,0,0,0]} 1. d4 {[%emt 0:02:41]} d5 {[%emt 0:01:30]} 2. Nf3 {[%emt 0:00:26]} c5 {[%emt 0:00:50]} 3. c4 {[%emt 0:00:26]} dxc4 {[%emt 0:00:45]} 4. e3 {[%emt 0:00:28]} e6 {[%emt 0:00:18]} 5. Bxc4 {[%emt 0:00:21]} Nf6 {[%emt 0:00:09]} 6. O-O {[%emt 0:00:48]} Nc6 {[%emt 0:00:03]} 7. Qe2 {[%emt 0:05:32]} cxd4 {[%emt 0:00:56]} 8. Rd1 {[%emt 0:00:18]} Be7 {[%emt 0:00:22]} 9. exd4 {[%emt 0:00:20]} O-O {[%emt 0:00:03]} 10. Nc3 {[%emt 0:00:39] 10.a3 is vanishing.} Nb4 {[%emt 0:02:15]} 11. Bg5 {[%emt 0:04:10]} h6 {[%emt 0:00:47] D26: Queen's Gambit Accepted: 4 e3 e6 5 Bxc5 c5 sidelines.} 12. Bh4 {[%emt 0:01:01]} a6 {[%emt 0:08:58]} 13. a4 {[%emt 0:02:25] Inhibits b5.} Bd7 14. d5 {[%emt 0:10:50]} exd5 {[%emt 0:11:13] [#]} 15. Bxf6 $146 {[%emt 0:01:26]} ({Predecessor:} 15. Nxd5 Nbxd5 16. Bxd5 Nxd5 17. Bxe7 Nxe7 18. Ne5 Nc6 19. Nxd7 Re8 20. Qf3 Qe7 21. Qa3 {1-0 (73) Sorokin,A (2521)-Lenderman,A (2624) Chess.com INT 2020}) 15... Bxf6 {[%emt 0:00:09]} 16. Nxd5 {[%emt 0:00:47]} Nxd5 {[%emt 0:00:06]} 17. Bxd5 {[%emt 0:00:42]} Qb6 {[%emt 0:04:36]} 18. Nd2 {[%emt 0:18:08]} Rad8 {[%emt 0:09:34][%cal Od7a4] [#] And now ...Bxa4! would win.} (18... Bxb2 $2 19. Nc4 Qb4 20. Qxb2 $18) 19. Ne4 {[%emt 0:09:46]} Qxb2 {[%emt 0:17:56]} ({Of course not} 19... Bxb2 20. Rab1 Bxa4 21. Rd3 $11) 20. Nxf6+ {[%emt 0:01:04] The position is equal.} Qxf6 {[%emt 0:00:02]} 21. Bxb7 {[%emt 0:01:05]} a5 {[%emt 0:00:12]} 22. h3 {[%emt 0:02:58]} Rfe8 {[%emt 0:03:25]} 23. Qa6 {[%emt 0:01:30]} Bxa4 {[%emt 0:19:42] Weighted Error Value: White=0.12 (very precise) /Black=0.12 (very precise)} 1/2-1/2

[Event "MPL 41st IND-ch Teams 2022"]
[Site "Jalgaon"]
[Date "2022.04.11"]
[Round "5.6"]
[White "Das, Sayantan"]
[Black "Sa, Kannan"]
[Result "1-0"]
[ECO "B02"]
[WhiteElo "2459"]
[BlackElo "1930"]
[Annotator "TA"]
[PlyCount "63"]
[EventDate "2022.04.08"]
[EventType "team-tourn"]
[EventCountry "IND"]
[SourceTitle "playchess.com"]
[Source "ChessBase"]
[SourceQuality "1"]
[TimeControl "5400+30"]

{[%evp 9,63,26,12,17,15,8,36,16,59,39,266,247,256,267,264,278,273,265,272,292,250,235,227,237,207,220,220,208,245,245,258,252,332,325,332,320,297,315,333,327,503,502,545,540,534,533,627,629,582,609,600,0,558,520,505,493]} 1. e4 Nf6 2. e5 Ng8 3. d4 d6 4. exd6 cxd6 5. c4 g6 6. Nf3 {B02: Alekhine's Defence: Chase Variation and lines with early Nc3.} Bg7 7. Be2 Nc6 8. O-O {White is slightly better.} Qb6 {[%cal Rc6d4] [#]} 9. d5 $146 ({Predecessor:} 9. Qa4 Bd7 {0-1 (8) Bergmann,F-Gallinnis,N corr 1982}) 9... Bxb2 $2 10. Bxb2 $18 Qxb2 {[#]} 11. dxc6 $1 {[%cal Od1a4] Black must now prevent Qa4!} Qxa1 12. cxb7 Bxb7 13. Qb3 Qf6 {...Bxf3 is the strong threat.} 14. Qxb7 Rd8 15. Qc6+ Kf8 {[#]} 16. Qc7 $1 {[%csl LRa7,LRd8]} e6 17. Qxa7 Kg7 18. Nbd2 {[%cal Bb1d2,Bd2e4,Be4g3][%mdl 32]} Qe7 19. Qe3 ({Much less strong is} 19. Qd4+ e5 20. Qc3 Nf6) 19... Nh6 20. Ne4 d5 21. cxd5 exd5 22. Qc3+ f6 23. Ng3 Ra8 24. Qd2 Nf7 (24... Qd7 {keeps fighting.} 25. Rd1 Rab8) 25. Nd4 Nd6 {Inhibits Ngf5+.} 26. Bf3 {[%cal Be2f3,Bf3d5,Bd5c6,Bc6e8][%mdl 32] Threatens to win with Re1.} Rhe8 27. Bxd5 Rac8 28. Bc6 Nc4 29. Qc3 Nd6 {Inhibits Ndf5+.} 30. Qd2 Nc4 31. Qf4 Qe5 {[#] Inhibits Ngf5+.} 32. Bxe8 $1 {White took control after the opening.  Weighted Error Value: White=0.18 (very precise) /Black=0.43} 1-0